{"text_format":"3","workbook":"xlsx","n_sheets":1,"sheets":["PRICING SCHEDULE"],"not_rendered":{"images":1,"defined_names":2},"read":"whole","date_system":"1900"}

{"sheet":"PRICING SCHEDULE","index":0,"n_rows":38,"n_cols":17,"rows_kept":38,"merged":[[10,2,10,3],[11,2,11,3],[11,5,13,5],[12,2,12,3],[13,2,13,3],[15,4,15,6],[15,7,15,9],[15,10,15,12],[23,16,26,16],[34,1,37,1],[34,2,34,3],[34,4,34,5],[35,2,35,3],[36,2,36,3],[36,4,36,5],[37,2,37,3],[37,4,37,5]]}
[null,"SUPPLY CHAIN MANAGEMENT"]
[null,"Pricing schedule"]
["RFB No","RFB 3163-2025"]
["RFB Title","The Procurement of Network Equipment for KZN Department of Health "]
["Bidder Name "]
[]
["(a)  Bidder must complete/enter YELLOW cells only"]
["(b)  Unit and Line prices must be VAT EXCLUSIVE and in South African Rand (ZAR) currency."]
["(c) The price must include all cost to deliver the goods or render the service, including all applicable taxes, duty fees, logistics/delivery, storage, labour, overtime and subsistance and travel"]
["(d)  Prices that are dependent on Rate of Exchange (ROE) must use ROE indicated below, then enter in Column \"Forex %\" the percentage of the price that is ROE dependent (0% means the price is not ROE dependent)"]
[null,"Foreign currency","South African Rand (ZAR) exchange rate "]
[null,"1 US Dollar",{"$nulls":3},"Mark with an X, which ROE is applicable"]
[null,"1 Euro"]
[null,"1 Pound (UK)"]
[]
[{"$nulls":4},"YEAR 1",null,null,"YEAR 2",null,null,"YEAR 3",null,null,"TOTAL"]
["Item No","Goods/Service description","Unit of measure","Forex %","Qty ","Unit Price \n(Excl VAT)","Line Price Y1","Qty","Unit Price \n(Excl VAT)","Line Price Y2","Qty","Unit Price \n(Excl VAT)","Line Price Y3","Line Price Term \n(Excl VAT)","Forex Price portion","BRAND / MODEL","Price clarification comment"]
[1,"Network Equipment"]
[null,"24-Port Switches","item",{"v":0,"d":"0%"},440,null,{"$f":"E19*F19","v":0},{"$nulls":4},0,{"$f":"K19*L19","v":0},{"$f":"SUM(G19,J19,M19)","v":0},{"$f":"D19*N19","v":0},"Huawei S5735-S24PN4XE-V2"]
[null,"Core Switches","item",{"v":0,"d":"0%"},2,null,{"$f":"E20*F20","v":0},{"$nulls":4},0,0,0,0,"Huawei S8700-6"]
[null,"Bandwidth Management Devices","item",{"v":0,"d":"0%"},150,null,0,{"$nulls":4},0,0,0,0,"Huawei NetEngine 8000 X4 (NE8000 X4)"]
[null,"Campus Network Management System","item",{"v":0,"d":"0%"},1,null,0,{"$nulls":4},0,0,0,0,"Huawei NE8000 X4 "]
[2,"Configuration: Network Equipment "]
[null,"24-Port Switches","item",{"v":0,"d":"0%"},440,null,0,{"$nulls":4},0,0,0,0,null,"Associated cost for Configuration"]
[null,"Core Switches","item",{"v":0,"d":"0%"},2,null,0,{"$nulls":4},0,0,0,0]
[null,"Bandwidth Management Devices","item",{"v":0,"d":"0%"},150,null,0,{"$nulls":4},0,0,0,0]
[null,"Campus Network Management System","item",{"v":0,"d":"0%"},1,null,0,{"$nulls":4},0,0,0,0]
[3,"Installation: Network Equipment "]
[null,"24-Port Switches & Bandwidth Management Devices","rate per km",{"v":0,"d":"0%"},100000,null,0,{"$nulls":4},0,0,0,0,null,"Bidder must provide a per-kilometer travel rate for installation services. The total travel distance for installation from the regional hub to various sub-hub delivery sites shall not exceed 100,000 kilometers (5 X 20,000 kilometers) in total. Bidders must estimate their travel costs accordingly based on this upper limit and include a not-to-exceed travel cost line in their quotation."]
[null,"TOTAL BID PRICE  (EXCL VAT)",{"$nulls":4},{"$f":"SUBTOTAL(9,G18:G29)","v":0},null,null,{"$f":"SUBTOTAL(9,J18:J29)","v":0},null,null,{"$f":"SUBTOTAL(9,M18:M29)","v":0},{"$f":"SUBTOTAL(9,N18:N29)","v":0},{"$f":"SUBTOTAL(9,O18:O29)","v":0}]
[null,"VAT (@15.5%)",{"$nulls":4},{"$f":"G30*0.15","v":0},null,null,{"$f":"J30*0.15","v":0},null,null,{"$f":"M30*0.15","v":0},{"$f":"N30*0.15","v":0}]
[null,"TOTAL  BID PRICE (INCL VAT)",{"$nulls":4},{"$f":"G30+G31","v":0},null,null,{"$f":"J30+J31","v":0},null,null,{"$f":"M30+M31","v":0},{"$f":"N30+N31","v":0}]
[]
[]
[null,"I, the bidder, confirm that the price(s) and rate(s) quoted cover all the goods and/or works specified in the bidding documents; that the price(s) or rate(s) cover all my obligations and I accept that any mistakes regarding price(s), rate(s) or calculations will be at my own risk.\n[Note: First convert to PDF, then add signature]"]
[null,null,"Name",null,"Capacity"]
[]
[null,null,"Signature (above)",null,"Date"]